bitfinex/quotes_BTCUSD_20260315
["timestamp","ask_amount","ask_price","bid_price","bid_amount"]
[1773543072141,0.00144,71468.0,71452.0,0.04006887]
[1773543072519,0.00144,71468.0,71452.0,0.0005078]
[1773543072717,0.0380854,71467.0,71452.0,0.0005078]
[1773543072941,0.0380854,71467.0,71448.0,0.00144]
[1773543073824,0.06996333,71466.0,71449.0,0.04001887]
[1773543074028,0.00144,71465.0,71448.0,0.07142077]
[1773543074234,0.00144,71464.0,71448.0,0.07142077]
[1773543074447,0.00144,71464.0,71442.0,0.11000489]
[1773543074645,0.00144,71464.0,71443.0,0.00144]
[1773543074874,0.00144,71464.0,71444.0,0.04145887]
[1773543075075,0.00130017,71464.0,71444.0,0.04145887]
[1773543075281,0.00130017,71464.0,71444.0,0.04001887]
[1773543075433,0.00130017,71464.0,71446.0,0.04001887]
[1773543076284,0.06996627,71463.0,71447.0,0.06998194]
[1773543076495,0.06996627,71463.0,71448.0,0.04001887]
[1773543077071,0.00130017,71464.0,71448.0,0.04001887]
[1773543077277,0.07139893,71471.0,71448.0,0.04001887]
[1773543077470,0.07031001,71477.0,71448.0,0.04001887]
[1773543077938,0.07031001,71477.0,71444.0,0.06998194]
[1773543077939,0.0380854,71469.0,71443.0,0.04001887]
[1773543078426,0.0380854,71467.0,71441.0,0.01124]
[1773543078631,0.0380854,71467.0,71444.0,0.0002]
[1773543078983,0.03794557,71467.0,71444.0,0.0002]
[1773543079398,0.07140138,71468.0,71436.0,0.0002]
[1773543079399,0.0380854,71458.0,71436.0,0.0002]
[1773543079621,0.00144,71457.0,71436.0,0.11021136]
[1773543079818,0.00144,71457.0,71436.0,0.04165887]
[1773543080211,0.00144,71457.0,71437.0,0.04001887]
[1773543080414,0.06997313,71456.0,71437.0,0.04001887]
[1773543080651,0.06997313,71456.0,71437.0,0.04145887]
[1773543080857,0.0380854,71455.0,71436.0,0.0002]
[1773543081235,0.06997313,71456.0,71424.0,6e-05]
[1773543081236,0.0380854,71449.0,71424.0,6e-05]
[1773543081442,0.0380854,71439.0,71411.0,0.0702172]
[1773543081647,0.03997669,71437.0,71418.0,1e-08]
[1773543081961,0.03997669,71437.0,71408.0,5e-05]
[1773543081962,0.04032656,71428.0,71408.0,5e-05]
[1773543082179,0.04032656,71426.0,71408.0,5e-05]
[1773543082384,0.0700035,71425.0,71408.0,5e-05]
[1773543083143,0.04032656,71424.0,71408.0,5e-05]
[1773543083344,0.04032656,71424.0,71406.0,0.0002]
[1773543084378,0.04132656,71424.0,71406.0,0.0002]
[1773543084581,0.07000546,71423.0,71406.0,0.0002]
[1773543084782,0.07000546,71423.0,71392.0,0.07003514]
[1773543084783,0.04032656,71419.0,71405.0,1e-08]
[1773543085001,0.00144,71418.0,71405.0,1e-08]
[1773543085385,0.04176656,71418.0,71405.0,1e-08]
[1773543086568,0.07001134,71417.0,71408.0,0.0002]
[1773543087222,0.06987151,71417.0,71408.0,0.0002]
[1773543087428,0.07201068,71418.0,71408.0,0.0002]
[1773543087629,0.07101068,71418.0,71408.0,0.0002]
[1773543087805,0.001,71417.0,71408.0,0.0002]
[1773543088010,0.00144,71416.0,71405.0,1e-08]
[1773543088388,0.00109005,71416.0,71405.0,1e-08]
[1773543088928,0.0700133,71415.0,71405.0,1e-08]
[1773543089534,0.0714533,71415.0,71405.0,1e-08]
[1773543090084,0.07181,71415.0,71405.0,1e-08]
[1773543090286,0.07281,71415.0,71405.0,1e-08]
[1773543090691,0.03369846,71415.0,71405.0,1e-08]
[1773543090896,0.0710133,71415.0,71405.0,1e-08]
[1773543091100,0.06987347,71415.0,71405.0,1e-08]
[1773543091382,0.07000896,71420.0,71405.0,1e-08]
[1773543091545,0.06999191,71437.0,71406.0,0.04243442]
[1773543091546,0.00144,71425.0,71406.0,0.04243442]
[1773543091948,0.001,71415.0,71406.0,0.04243442]
[1773543092100,0.001,71415.0,71405.0,0.00035671]
[1773543092307,0.00144,71425.0,71405.0,0.00035671]
[1773543092724,0.07000546,71423.0,71405.0,0.00035671]
[1773543092927,0.04032656,71422.0,71405.0,1e-08]
[1773543093682,0.04032656,71422.0,71405.0,0.00020001]
[1773543094766,0.04132656,71422.0,71405.0,0.00020001]
[1773543095072,0.07144742,71421.0,71405.0,0.04263443]
[1773543095234,0.07130759,71421.0,71405.0,0.00020001]
[1773543095730,0.04032656,71420.0,71405.0,0.00020001]
[1773543096068,0.07130759,71421.0,71405.0,0.00020001]
[1773543096271,0.00144,71420.0,71405.0,0.00020001]
[1773543096647,0.00017858,71420.0,71405.0,0.00020001]
[1773543097059,0.00017858,71420.0,71405.0,0.07022283]
[1773543097256,0.07000252,71427.0,71406.0,0.04243442]
[1773543097457,0.07000252,71427.0,71407.0,0.00144]
[1773543097628,0.07000252,71427.0,71408.0,0.04243442]
[1773543099390,0.06986269,71427.0,71409.0,0.1124536]
[1773543099749,0.07000133,71428.0,71410.0,0.04243442]
[1773543100542,0.07000154,71428.0,71410.0,0.04243442]
[1773543101392,0.0699888,71440.0,71411.0,0.07001722]
[1773543101595,0.0699888,71440.0,71412.0,0.00144]
[1773543101596,0.04176656,71439.0,71412.0,0.00144]
[1773543101844,0.04176656,71439.0,71409.0,0.07001855]
[1773543102024,0.04176656,71439.0,71410.0,0.00144]
[1773543102612,0.17603334,71430.0,71396.0,0.18041017]
[1773543102800,0.04032656,71427.0,71398.0,0.05538233]
[1773543103002,0.04032656,71425.0,71399.0,0.01294791]
[1773543103332,0.04032656,71425.0,71397.0,0.0702308]
[1773543103333,0.04018673,71425.0,71397.0,0.0702308]
[1773543103538,0.04032656,71423.0,71398.0,0.08298418]
[1773543103682,0.04032656,71421.0,71399.0,0.01295448]
[1773543104205,0.04032656,71421.0,71397.0,0.0002]
[1773543104402,0.04032656,71421.0,71398.0,0.01295998]
[1773543105175,0.04032656,71421.0,71398.0,0.01439998]
[1773543105423,0.04032656,71421.0,71399.0,0.01295998]
[1773543105630,0.04032656,71421.0,71399.0,0.08298869]
[1773543105631,0.04032656,71419.0,71399.0,0.08298869]
[1773543105775,0.04032656,71419.0,71400.0,0.01295998]
[1773543105976,0.04032656,71419.0,71401.0,0.01295998]
[1773543106218,0.04032656,71419.0,71402.0,0.01297377]
[1773543106473,0.04032656,71419.0,71397.0,0.07167084]
[1773543106683,0.04032656,71419.0,71398.0,0.01297453]
[1773543106809,0.04032656,71419.0,71399.0,0.01297453]
[1773543107006,0.04032656,71419.0,71400.0,0.01297453]
[1773543107318,0.04018673,71419.0,71401.0,0.01297453]
[1773543107675,0.04018673,71419.0,71402.0,0.01297453]
[1773543107835,0.07001036,71418.0,71403.0,0.01297453]
[1773543108033,0.07001036,71418.0,71399.0,0.07002852]
[1773543108352,0.07001036,71418.0,71402.0,0.04243442]
[1773543108530,0.07001036,71418.0,71403.0,0.01299453]
[1773543109173,0.07001036,71418.0,71404.0,0.01299453]
[1773543109376,0.07001036,71418.0,71405.0,0.01299453]
[1773543109541,0.07001036,71418.0,71406.0,0.01299453]
[1773543109736,0.07001036,71419.0,71407.0,0.01299453]
[1773543109936,0.07001036,71419.0,71408.0,0.01299453]
[1773543110139,0.07001036,71419.0,71409.0,0.01301846]
[1773543110377,0.07001036,71419.0,71410.0,0.01301846]
[1773543110526,0.07001036,71419.0,71399.0,0.11037922]
[1773543110874,0.07001036,71419.0,71400.0,0.01301848]
[1773543111082,0.07101036,71419.0,71401.0,0.01301848]
[1773543111303,0.06983246,71419.0,71402.0,0.01301848]
[1773543111445,0.04179537,71418.0,71403.0,0.01301848]
[1773543111661,0.04179537,71418.0,71404.0,0.01301848]
[1773543111995,0.07001134,71417.0,71405.0,0.01301848]
[1773543112153,0.00126209,71416.0,71406.0,0.01301848]
[1773543112349,0.00126209,71416.0,71407.0,0.01301848]
[1773543112685,0.00126209,71416.0,71408.0,0.01301848]
[1773543112906,0.00126209,71416.0,71399.0,0.11181922]
[1773543112907,0.00126209,71416.0,71409.0,0.01301848]
[1773543113095,0.00126209,71416.0,71410.0,0.01301848]
[1773543113418,0.04283235,71416.0,71411.0,0.01303267]
[1773543113562,0.04283235,71416.0,71399.0,0.11181922]
[1773543114011,0.0700133,71415.0,71399.0,0.11181922]
[1773543114221,0.0700133,71415.0,71399.0,0.00144]
[1773543114894,0.11158356,71415.0,71399.0,0.00144]
[1773543115093,0.0700133,71415.0,71399.0,0.00144]
[1773543115295,0.04157026,71414.0,71399.0,0.00144]
[1773543115616,0.04143043,71414.0,71398.0,0.11787922]
[1773543115778,0.04143043,71414.0,71398.0,0.11931922]
[1773543115988,0.04143043,71414.0,71398.0,0.11787922]
[1773543116191,0.04157026,71412.0,71405.0,0.0002]
[1773543116528,0.04157026,71412.0,71398.0,0.11787922]
[1773543117493,0.04157026,71412.0,71398.0,0.0075]
[1773543117694,0.04257026,71412.0,71398.0,0.0075]
[1773543117895,0.04157026,71412.0,71398.0,0.0075]
[1773543118204,0.07001722,71411.0,71398.0,0.0075]
[1773543118570,0.11158748,71411.0,71398.0,0.0075]
[1773543119311,0.00144,71410.0,71398.0,0.0075]
[1773543119647,0.00130017,71410.0,71398.0,0.0075]
[1773543120379,0.07001918,71409.0,71398.0,0.0075]
[1773543121086,0.07001918,71409.0,71399.0,0.04027348]
[1773543121455,0.07001918,71409.0,71398.0,0.0075]
[1773543121655,0.07001918,71409.0,71399.0,0.04027348]
[1773543122104,0.07001428,71414.0,71399.0,0.04027348]
[1773543122740,0.07000801,71421.0,71399.0,0.04027348]
[1773543122741,0.07022715,71422.0,71402.0,0.11037922]
[1773543122913,0.07022715,71422.0,71403.0,0.04027348]
[1773543123116,0.07022715,71422.0,71405.0,0.04027348]
[1773543123477,0.07008732,71422.0,71405.0,0.04027348]
[1773543124000,0.07008732,71422.0,71404.0,0.00144]
[1773543124215,0.07008732,71422.0,71405.0,0.04027348]
[1773543125301,8.018e-05,71422.0,71408.0,0.04027348]
[1773543125489,8.018e-05,71422.0,71410.0,0.04027348]
[1773543125689,8.018e-05,71422.0,71411.0,0.01446846]
[1773543125908,8.018e-05,71422.0,71412.0,0.01302846]
[1773543126184,0.06992307,71424.0,71413.0,0.01302846]
[1773543126387,0.06999286,71436.0,71415.0,0.04027348]
[1773543126595,0.06999282,71436.0,71417.0,0.04027348]
[1773543126798,0.06999381,71435.0,71419.0,0.04027348]
[1773543127044,0.06999381,71435.0,71421.0,0.04027348]
[1773543127247,0.06999381,71435.0,71423.0,0.07000546]
[1773543127452,0.06999381,71435.0,71424.0,0.01446846]
[1773543127453,0.07021527,71434.0,71424.0,0.01446846]
[1773543127801,0.04143043,71433.0,71415.0,0.00179692]
[1773543127976,0.04143043,71433.0,71415.0,0.07181006]
[1773543128170,0.07021527,71434.0,71416.0,0.04027348]
[1773543128380,0.07165527,71434.0,71416.0,0.04027348]
[1773543128539,0.07021476,71434.0,71416.0,0.04027348]
[1773543129358,0.07021476,71434.0,71418.0,0.04027348]
[1773543131206,0.069979,71450.0,71421.0,0.04027348]
[1773543131410,0.00144,71447.0,71423.0,0.04027348]
[1773543131614,0.00144,71447.0,71425.0,0.04027348]
[1773543131910,0.00022001,71433.0,71425.0,0.04027348]
[1773543132054,0.069979,71450.0,71425.0,0.04027348]
[1773543132261,0.00144,71449.0,71425.0,0.04027348]
[1773543132456,0.00022001,71441.0,71425.0,0.04027348]
[1773543133339,0.0699888,71440.0,71426.0,0.07000252]
[1773543133488,0.0699888,71440.0,71427.0,0.04027348]
[1773543134117,0.0699888,71440.0,71427.0,0.03992344]
[1773543134352,0.0699888,71440.0,71421.0,0.04027348]
[1773543134502,0.0699888,71440.0,71422.0,0.00144]
[1773543134503,0.04157026,71439.0,71422.0,0.00144]
[1773543135600,0.0699888,71443.0,71422.0,0.00144]
[1773543135601,5e-05,71452.0,71422.0,0.02205668]
[1773543135807,0.06997147,71458.0,71432.0,0.04027348]
[1773543136005,0.06997147,71458.0,71434.0,0.04027348]
[1773543136481,0.06997147,71458.0,71435.0,0.00144]
[1773543136701,0.06997147,71458.0,71437.0,0.03992353]
[1773543137802,0.06997109,71459.0,71437.0,0.039969]
[1773543138010,0.06997109,71459.0,71439.0,0.04027348]
[1773543138165,0.04157026,71456.0,71437.0,0.07003658]
[1773543138373,0.00144,71455.0,71437.0,4.547e-05]
[1773543138575,0.04157026,71454.0,71438.0,0.00144]
[1773543139061,0.00144,71455.0,71438.0,0.00144]
[1773543139482,0.00034987,71454.0,71438.0,0.00144]
[1773543139887,0.00034987,71454.0,71437.0,4.547e-05]
[1773543139888,0.06997606,71453.0,71437.0,4.547e-05]
[1773543140128,0.00022001,71439.0,71437.0,4.547e-05]
[1773543140991,0.00022001,71439.0,71423.0,0.07144538]
[1773543141182,0.00022001,71439.0,71424.0,0.01295862]
[1773543141386,0.00022001,71439.0,71425.0,0.01295862]
[1773543141641,0.00022001,71439.0,71423.0,5.013e-05]
[1773543141935,0.06999076,71438.0,71423.0,5.013e-05]
[1773543145018,0.00144,71437.0,71423.0,5.013e-05]
[1773543145845,0.04214604,71436.0,71423.0,5.013e-05]
[1773543146442,0.0699937,71435.0,71423.0,5.013e-05]
[1773543146618,0.04214604,71434.0,71423.0,5.013e-05]
[1773543147445,0.0699937,71435.0,71423.0,5.013e-05]
[1773543147844,0.001,71434.0,71423.0,5.013e-05]
[1773543148560,0.06999566,71433.0,71423.0,5.013e-05]
[1773543149495,0.06999566,71433.0,71423.0,0.00025013]
[1773543149854,0.06999566,71433.0,71424.0,0.04234041]
[1773543149855,0.001,71433.0,71424.0,0.04234041]
[1773543150052,0.07021054,71439.0,71425.0,0.04234041]
[1773543150992,0.07021054,71439.0,71426.0,0.055321]
[1773543151192,0.07021054,71439.0,71427.0,0.01298591]
[1773543151397,0.07021054,71439.0,71426.0,0.04234041]
[1773543151608,0.06998384,71446.0,71424.0,0.00144]
[1773543151609,0.0699839,71445.0,71427.0,0.0129859]
[1773543151849,0.0699839,71445.0,71428.0,0.05532631]
[1773543152053,0.0699839,71445.0,71429.0,0.0129859]
[1773543152256,0.04214604,71444.0,71423.0,0.00025013]
[1773543152387,0.0699839,71445.0,71423.0,0.00025013]
[1773543152388,0.00144,71443.0,71423.0,0.00025013]
[1773543152729,0.04214604,71442.0,71423.0,0.00025013]
[1773543153039,0.04214604,71440.0,71416.0,0.1123525]
[1773543153253,0.04214604,71440.0,71416.0,0.11270942]
[1773543153661,0.04214604,71440.0,71417.0,0.04234041]
[1773543154914,0.04214604,71438.0,71416.0,0.07036901]
[1773543155110,0.04358604,71437.0,71416.0,0.07036901]
[1773543155968,0.00144,71437.0,71417.0,0.04234041]
[1773543156263,0.00144,71436.0,71417.0,0.04234041]
[1773543156614,0.00144,71435.0,71417.0,0.04234041]
[1773543157726,0.06999468,71434.0,71418.0,0.07001036]
[1773543157926,0.06999468,71434.0,71417.0,0.04234041]
[1773543158378,0.11214072,71434.0,71416.0,0.00035692]
[1773543158620,0.04214604,71433.0,71417.0,0.0002]
[1773543159955,0.04214604,71431.0,71409.0,0.07021873]
[1773543160198,0.04214604,71431.0,71410.0,0.04234041]
[1773543160199,0.00035698,71431.0,71410.0,0.04234041]
[1773543160870,0.00144,71430.0,71410.0,0.04234041]
[1773543163093,0.06999958,71429.0,71410.0,0.04234041]
[1773543163293,0.04214604,71426.0,71408.0,5e-05]
[1773543164144,0.04214604,71426.0,71409.0,0.01302028]
[1773543164392,0.04214604,71426.0,71410.0,0.01302028]
[1773543164525,0.04214604,71426.0,71411.0,0.01302028]
[1773543164725,0.04214604,71426.0,71408.0,5e-05]
[1773543165126,0.0700035,71425.0,71408.0,5e-05]
[1773543165316,0.04358604,71424.0,71404.0,0.0002]
[1773543167298,0.04214604,71422.0,71404.0,0.0002]
[1773543169928,0.04402934,71420.0,71404.0,0.0002]
[1773543170178,0.07144546,71424.0,71404.0,0.0002]
[1773543170179,0.16731089,71452.0,71405.0,0.09070461]
[1773543170313,0.00144,71459.0,71431.0,0.01997669]
[1773543170484,0.04402934,71468.0,71430.0,0.17649078]
[1773543170485,0.11399561,71465.0,71464.0,1e-08]
[1773543170720,0.04402934,71464.0,71437.0,0.01104355]
[1773543170946,0.04402934,71464.0,71438.0,0.13876172]
[1773543171163,0.04402934,71464.0,71439.0,0.13876172]
[1773543171366,0.04402934,71464.0,71440.0,0.13876172]
[1773543171573,0.02438036,71459.0,71441.0,0.09997822]
[1773543171773,0.04615371,71458.0,71439.0,8.586e-05]
[1773543171983,0.06997215,71457.0,71426.0,0.07000252]
[1773543172214,0.04471371,71456.0,71426.0,0.07009784]
[1773543173595,0.04471371,71456.0,71426.0,9.532e-05]
[1773543174090,0.04471371,71449.0,71426.0,9.532e-05]
[1773543174245,0.04471371,71447.0,71420.0,0.0700077]
[1773543174471,0.04471371,71447.0,71420.0,0.00035698]
[1773543175086,0.00144,71446.0,71421.0,0.04680483]
[1773543175638,0.04615371,71446.0,71421.0,0.04680483]
[1773543176252,0.04471371,71444.0,71421.0,0.07000644]
[1773543176804,0.04471371,71444.0,71422.0,0.01301895]
[1773543177007,0.04471371,71444.0,71423.0,0.01301895]
[1773543177223,0.04471371,71444.0,71424.0,0.0130181]
[1773543177444,0.04471371,71444.0,71421.0,0.07000644]
[1773543177646,0.04471371,71444.0,71422.0,0.01301899]
[1773543177842,0.04471371,71444.0,71423.0,0.01301899]
[1773543178043,0.04471371,71444.0,71420.0,0.00035698]
[1773543178256,0.04471371,71442.0,71421.0,0.01301946]
[1773543178407,0.04471371,71442.0,71422.0,0.01301946]
[1773543178606,0.04471371,71442.0,71423.0,0.01301946]
[1773543178811,0.04471371,71442.0,71420.0,0.00035698]
[1773543180224,0.06998782,71441.0,71420.0,0.00035698]
[1773543180451,0.04615371,71440.0,71420.0,0.00035698]
[1773543182489,0.04471371,71438.0,71420.0,0.00035698]
[1773543184039,0.04571371,71438.0,71420.0,0.00035698]
[1773543184432,0.06999174,71437.0,71420.0,0.00035698]
[1773543184636,0.04471371,71436.0,71420.0,0.00035698]
[1773543184841,0.04471371,71436.0,71409.0,0.0002]
[1773543185044,0.0450708,71436.0,71410.0,0.01302594]
[1773543185217,0.0450708,71436.0,71411.0,0.01302594]
[1773543185407,0.04471371,71434.0,71409.0,0.0002]
[1773543185606,0.04471371,71434.0,71410.0,0.01302695]
[1773543185831,0.04471371,71434.0,71411.0,0.01302695]
[1773543186109,0.04471371,71434.0,71409.0,0.0002]
[1773543186110,0.20849304,71458.0,71412.0,0.15195791]
[1773543186313,0.00144,71450.0,71432.0,0.04680483]
[1773543186520,0.04471371,71469.0,71435.0,0.04680483]
[1773543186521,0.06996904,71461.0,71435.0,0.04680483]
[1773543186938,0.04471371,71459.0,71435.0,0.04680483]
[1773543187139,0.04471371,71457.0,71436.0,0.15186496]
[1773543187345,0.04471371,71457.0,71432.0,0.06999641]
[1773543187546,0.04471371,71457.0,71433.0,0.15185971]
[1773543187742,0.04471371,71457.0,71434.0,0.15185971]
[1773543187946,0.04471371,71457.0,71435.0,0.01301735]
[1773543188181,0.04471371,71457.0,71432.0,0.07010169]
[1773543188366,0.04471371,71457.0,71433.0,0.01301552]
[1773543188568,0.04471371,71455.0,71432.0,0.00010528]
[1773543188972,0.04471371,71453.0,71432.0,0.00010528]
[1773543190803,0.06997704,71452.0,71432.0,0.00010528]
[1773543191046,0.04471371,71451.0,71432.0,0.00010528]
[1773543193661,0.069979,71450.0,71432.0,0.00010528]
[1773543193863,0.04471371,71449.0,71422.0,0.07000616]
[1773543194162,0.04471371,71447.0,71423.0,0.15192884]
[1773543194319,0.04471371,71447.0,71424.0,0.15192884]
[1773543194521,0.04471371,71447.0,71425.0,0.15192884]
[1773543194743,0.04471371,71447.0,71426.0,0.0130239]
[1773543194947,0.04471371,71447.0,71422.0,0.00035709]
[1773543195112,0.04471371,71447.0,71423.0,0.15191099]
[1773543195313,0.04471371,71447.0,71424.0,0.15191099]
[1773543195515,0.04471371,71447.0,71425.0,0.15191099]
[1773543195815,0.04471371,71447.0,71426.0,0.01302248]
[1773543196010,0.04471371,71445.0,71422.0,0.00035709]
[1773543196492,0.04471371,71445.0,71423.0,0.13889789]
[1773543196792,0.04507086,71445.0,71418.0,0.11681519]
[1773543196950,0.04507086,71445.0,71419.0,0.13889753]
[1773543197150,0.04507086,71445.0,71420.0,0.13889753]
[1773543197352,0.04507086,71445.0,71421.0,0.13889753]
[1773543197676,0.04507086,71445.0,71422.0,0.13889753]
[1773543197990,0.04507086,71445.0,71423.0,0.13889753]
[1773543198196,0.04471371,71443.0,71424.0,0.13893125]
[1773543198393,0.04471371,71441.0,71420.0,0.11681316]
[1773543198616,0.04471371,71441.0,71421.0,0.1389602]
[1773543198818,0.04471371,71441.0,71422.0,0.1389602]
[1773543199091,0.04471371,71441.0,71423.0,0.1389602]
[1773543199331,0.04471371,71441.0,71417.0,0.0002847]
[1773543199470,0.04471371,71441.0,71418.0,0.13902193]
[1773543199673,0.04471371,71441.0,71417.0,0.0002847]
[1773543200393,0.04471371,71439.0,71417.0,0.0002847]
[1773543200797,0.04471371,71439.0,71417.0,0.07029547]
[1773543200950,0.04471371,71439.0,71417.0,0.1171003]
[1773543202957,0.05346493,71437.0,71417.0,0.11995109]
[1773543203163,0.00144,71436.0,71417.0,0.11995109]
[1773543203990,0.05490493,71436.0,71417.0,0.11995109]
[1773543204197,0.05490493,71436.0,71417.0,0.0002847]
[1773543205185,0.05346493,71434.0,71417.0,0.0002847]
[1773543205591,0.05490493,71433.0,71410.0,0.04965562]
[1773543205792,0.05490493,71433.0,71419.0,0.00034995]
[1773543206393,0.19418493,71433.0,71419.0,0.00034995]
[1773543206595,0.00144,71432.0,71419.0,0.05000557]
[1773543207243,0.06999762,71431.0,71419.0,0.05000557]
[1773543207407,0.06999762,71431.0,71419.0,0.00034995]
[1773543207603,0.00144,71430.0,71419.0,0.05000557]
[1773543208657,0.06999762,71431.0,71419.0,0.00034995]
[1773543208877,0.00144,71429.0,71419.0,0.00034995]
[1773543209373,0.07000154,71427.0,71419.0,0.00034995]
[1773543210464,0.06965167,71427.0,71419.0,0.00034995]
[1773543211927,0.00144,71426.0,71419.0,0.00034995]
[1773543213667,0.0700035,71425.0,71419.0,0.00034995]
[1773543216478,0.0014,71424.0,71419.0,0.00034995]
[1773543217266,0.0014,71424.0,71420.0,0.01304681]
[1773543217460,0.0014,71424.0,71419.0,0.00034995]
[1773543217666,0.0014,71424.0,71420.0,0.01304681]
[1773543217864,0.07000546,71423.0,71419.0,0.00034995]
[1773543218065,0.07000546,71423.0,71420.0,0.01304679]
[1773543218273,0.07000546,71423.0,71421.0,0.01304984]
[1773543218452,0.07000546,71423.0,71419.0,0.00034995]
[1773543218652,0.07000546,71423.0,71420.0,0.01304984]
[1773543218861,0.07000546,71423.0,71421.0,0.01304984]
[1773543219057,0.07036239,71423.0,71419.0,0.00034995]
[1773543219267,0.07136239,71423.0,71420.0,0.01304983]
[1773543219447,0.07136239,71423.0,71421.0,0.01304983]
[1773543219671,0.07036239,71423.0,71419.0,0.00034995]
[1773543219883,0.07136239,71423.0,71420.0,0.01305169]
[1773543220133,0.07136239,71423.0,71421.0,0.01305169]
[1773543220327,0.07136239,71423.0,71419.0,0.00034995]
[1773543220549,0.07136239,71423.0,71420.0,0.01305438]
[1773543220698,0.07136239,71423.0,71421.0,0.01305438]
[1773543220915,0.07136239,71423.0,71419.0,0.00034995]
[1773543221116,0.07136239,71423.0,71420.0,0.01305433]
[1773543221433,0.05136239,71423.0,71421.0,0.01305433]
[1773543221637,0.05136239,71423.0,71422.0,0.01305589]
[1773543221956,0.05036239,71423.0,71422.0,0.01305589]
[1773543222510,0.05236239,71423.0,71422.0,0.01305589]
[1773543222709,0.05136239,71423.0,71422.0,0.01305589]
[1773543222912,0.0014,71423.0,71422.0,0.01305589]
[1773543223316,0.07000186,71427.0,71422.0,0.01305589]
[1773543223668,0.0014,71423.0,71422.0,0.00010708]
[1773543223870,0.0014,71423.0,71422.0,0.0131651]
[1773543224836,0.07140546,71423.0,71422.0,0.0131651]
[1773543228093,0.07140546,71423.0,71419.0,0.00054995]
[1773543228303,0.07140546,71423.0,71419.0,0.00065705]
[1773543229870,0.07000154,71428.0,71419.0,0.00065705]
[1773543229871,0.20849304,71459.0,71421.0,0.01594765]
[1773543230048,0.05603377,71464.0,71420.0,0.0700084]
[1773543230049,0.05581376,71461.0,71443.0,0.11136145]
[1773543230284,0.05581376,71460.0,71439.0,0.11136145]
[1773543230403,0.025,71458.0,71433.0,0.11136145]
[1773543230608,0.025,71458.0,71427.0,0.01625207]
[1773543230609,0.05581376,71457.0,71427.0,0.01625207]
[1773543230841,0.05581376,71457.0,71435.0,0.11136145]
[1773543231045,0.05581376,71457.0,71436.0,0.13898966]
[1773543231245,0.06997313,71456.0,71437.0,0.13898966]
[1773543231424,0.05721376,71455.0,71438.0,0.13898966]
[1773543231619,0.05721376,71455.0,71439.0,0.13898966]
[1773543231824,0.05721376,71455.0,71440.0,0.13898966]
[1773543232060,0.05721376,71455.0,71441.0,0.13898966]
[1773543232231,0.05745919,71450.0,71436.0,0.0001071]
[1773543232436,0.05745919,71448.0,71436.0,0.0001071]
[1773543233144,0.05745919,71448.0,71427.0,0.07000139]
[1773543233145,0.05745919,71448.0,71430.0,0.11136145]
[1773543233346,0.05745919,71448.0,71430.0,0.00010713]
[1773543233347,0.05745919,71446.0,71430.0,0.00010713]
[1773543235510,0.0699839,71445.0,71430.0,0.00010713]
[1773543235709,0.05745919,71444.0,71430.0,0.00010713]
[1773543236032,0.0014,71443.0,71430.0,0.00010713]
[1773543236730,0.0014,71443.0,71431.0,0.02402201]
[1773543237235,0.0699839,71445.0,71431.0,0.02402201]
[1773543237534,0.0014,71444.0,71430.0,0.00010713]
[1773543237743,0.06998586,71443.0,71430.0,0.00010713]
[1773543238710,0.05745919,71442.0,71424.0,0.11136145]
[1773543238962,0.05745919,71442.0,71424.0,0.07011127]
[1773543239696,0.06998782,71441.0,71426.0,0.07000252]
[1773543240264,0.06998782,71441.0,71427.0,0.0130271]
[1773543240441,0.06998782,71441.0,71428.0,0.0130271]
[1773543240642,0.06998782,71441.0,71426.0,0.07000252]
[1773543240643,0.06998782,71441.0,71429.0,0.0130271]
[1773543240842,0.06998782,71441.0,71430.0,0.0130271]
[1773543241012,0.06998782,71441.0,71426.0,0.07000252]
[1773543241216,0.06998782,71441.0,71427.0,0.01302718]
[1773543241410,0.06998782,71441.0,71428.0,0.01302718]
[1773543241654,0.06998782,71441.0,71429.0,0.01302718]
[1773543241862,0.06998782,71442.0,71430.0,0.03744684]
[1773543242039,0.06998782,71442.0,71430.0,0.02441966]
[1773543242887,0.0014,71441.0,71430.0,0.02441966]
[1773543243236,0.0014,71441.0,71430.0,0.11136145]
[1773543243880,0.0699888,71440.0,71431.0,0.0130332]
[1773543244056,0.0699888,71440.0,71430.0,0.11136145]
[1773543244389,0.0699888,71440.0,71431.0,0.15204569]
[1773543244587,0.0699888,71440.0,71432.0,0.13901328]
[1773543244888,0.00120475,71439.0,71433.0,0.15204449]
[1773543245036,0.0014,71439.0,71434.0,0.15204449]
[1773543245241,0.06117875,71450.0,71435.0,0.13901328]
[1773543245544,0.06117875,71450.0,71432.0,0.11136145]
[1773543245545,0.06117875,71448.0,71436.0,0.13901328]
[1773543245889,0.06117875,71448.0,71432.0,0.11136145]
[1773543245890,0.06117875,71448.0,71437.0,0.13901328]
[1773543246086,0.06998194,71447.0,71438.0,0.13901328]
[1773543246241,0.06998194,71447.0,71439.0,0.13901328]
[1773543246443,0.06998194,71447.0,71440.0,0.13901328]
[1773543246642,0.06998194,71447.0,71441.0,0.13901328]
[1773543246863,0.06117875,71446.0,71433.0,0.06999527]
[1773543247062,0.06117875,71446.0,71434.0,0.1518817]
[1773543247404,0.06117875,71446.0,71433.0,0.06999527]
[1773543247539,0.06117875,71446.0,71434.0,0.01301969]
[1773543247749,0.06117875,71446.0,71433.0,0.06999527]
[1773543248192,0.0699839,71445.0,71434.0,0.01301977]
[1773543248454,0.0699839,71445.0,71429.0,0.06999958]
[1773543248654,0.0699839,71445.0,71430.0,0.01302023]
[1773543248850,0.0699839,71445.0,71434.0,0.0002]
[1773543249104,0.06162928,71444.0,71434.0,0.0002]
[1773543249250,0.06162928,71442.0,71434.0,0.0002]
[1773543250065,0.06998782,71441.0,71434.0,0.0002]
[1773543251459,0.0014,71440.0,71434.0,0.0002]
[1773543252220,0.06998978,71439.0,71434.0,0.0002]
[1773543252402,0.06998869,71441.0,71435.0,0.01302992]
[1773543252605,0.0014,71440.0,71434.0,0.07019394]
[1773543252814,0.0014,71440.0,71435.0,0.01302989]
[1773543253039,0.0014,71440.0,71434.0,0.07019394]
[1773543253239,0.0014,71440.0,71435.0,0.01302991]
[1773543253440,0.0014,71440.0,71434.0,0.0002]
[1773543253633,0.0014,71440.0,71435.0,0.01303167]
[1773543253836,0.0014,71440.0,71434.0,0.0002]
[1773543254158,0.06998869,71441.0,71435.0,0.0130334]
[1773543254339,0.0014,71439.0,71436.0,0.0130334]
[1773543254547,0.0014,71438.0,71434.0,0.07019447]
[1773543254713,0.0014,71437.0,71435.0,0.01303643]
[1773543254908,0.0014,71438.0,71436.0,0.01303643]
[1773543255129,0.0014,71438.0,71437.0,0.01303643]
[1773543255362,0.06997998,71449.0,71437.0,0.01303643]
[1773543255567,0.0014,71448.0,71438.0,0.01303643]
[1773543255721,0.0014,71447.0,71439.0,0.01303643]
[1773543256062,0.0014,71447.0,71434.0,0.07019447]
[1773543256237,0.06998292,71446.0,71435.0,0.08303112]
[1773543256455,0.06998292,71446.0,71436.0,0.01303816]